bitfinex/quotes_ETHUSD_20241119
["timestamp","ask_amount","ask_price","bid_price","bid_amount"]
[1732016347557,6.4071,3121.6,3121.0,4.03108]
[1732016347753,3.20333,3121.8,3121.4,0.8189]
[1732016348196,3.20331,3121.8,3121.4,0.8189]
[1732016348602,6.40669,3121.8,3121.4,0.8189]
[1732016349292,3.20331,3121.8,3121.4,0.8189]
[1732016349497,3.20341,3121.7,3121.4,0.8189]
[1732016349854,3.2035,3121.6,3121.4,0.8189]
[1732016350068,1.3316279,3122.1,3121.4,0.8189]
[1732016350360,1.3316279,3122.1,3120.9,3.20414]
[1732016350361,3.20389,3121.2,3120.9,0.7738]
[1732016351419,4.5350079,3121.7,3120.9,0.7738]
[1732016351623,3.20384,3121.3,3120.9,0.7738]
[1732016351824,3.20401,3121.1,3120.9,0.7738]
[1732016351976,3.20384,3121.3,3120.9,0.7738]
[1732016352176,3.20395,3121.2,3120.9,0.7738]
[1732016352526,3.20401,3121.1,3120.9,0.7738]
[1732016352810,3.20384,3121.3,3120.9,0.7738]
[1732016353018,3.20416,3121.0,3120.8,0.63043122]
[1732016353181,3.2042,3120.9,3120.8,0.63043122]
[1732016354630,3.20454,3120.6,3120.3,0.7663]
[1732016354914,3.20463,3120.5,3120.3,0.7663]
[1732016355125,3.20471,3120.4,3120.3,0.7663]
[1732016355284,3.20462,3120.5,3120.0,3.9866]
[1732016355477,3.20462,3120.5,3120.0,5.6387439]
[1732016356319,7.17442,3120.7,3120.0,2.4336439]
[1732016356584,3.20471,3120.5,3120.1,0.57306405]
[1732016357085,3.20471,3120.5,3120.0,2.1131279]
[1732016357499,3.20471,3120.5,3120.0,5.3181779]
[1732016357830,3.20439,3120.8,3120.2,3.20484]
[1732016357981,3.20426,3120.9,3120.3,0.7733]
[1732016358182,6.40855,3120.9,3120.4,3.20469]
[1732016358514,4.75968069,3122.1,3120.4,1.3316279]
[1732016358515,3.20399,3121.2,3120.4,1.3316279]
[1732016358819,3.20399,3121.2,3120.3,0.7733]
[1732016358820,3.20412,3121.0,3120.6,1.3316279]
[1732016359126,6.40829,3121.0,3120.5,4.03431]
[1732016359325,3.20412,3121.0,3120.5,4.03431]
[1732016359628,3.20394,3121.2,3120.6,1.3316279]
[1732016359775,3.20394,3121.2,3120.7,3.2044]
[1732016359983,3.20394,3121.2,3120.8,0.8019]
[1732016360193,3.20375,3121.4,3120.8,0.8019]
[1732016360394,3.20391,3121.2,3120.8,0.8019]
[1732016361718,3.20414,3121.0,3120.8,0.8019]
[1732016361960,3.20414,3121.0,3120.5,0.8019]
[1732016363130,6.40832,3121.0,3120.5,4.0065]
[1732016363505,3.20414,3121.0,3120.5,4.0065]
[1732016363701,3.20402,3121.1,3120.6,3.20449]
[1732016364021,3.20395,3121.2,3120.6,3.20449]
[1732016364398,3.204,3121.1,3120.6,3.20449]
[1732016364827,3.20395,3121.2,3120.7,3.20438]
[1732016365033,3.20395,3121.2,3120.8,0.8019]
[1732016365430,3.20374,3121.4,3120.8,0.8019]
[1732016365731,3.20374,3121.4,3120.9,0.8019]
[1732016365947,3.20374,3121.4,3120.9,4.00608]
[1732016366226,0.8043,3121.7,3120.9,0.8019]
[1732016366227,3.20402,3121.1,3120.9,0.8019]
[1732016366434,0.320402,3121.0,3120.9,0.8019]
[1732016366617,6.4081,3121.1,3120.9,0.8019]
[1732016366820,3.20402,3121.1,3120.9,0.8019]
[1732016367494,6.40827,3121.0,3120.6,0.7841]
[1732016367725,6.40828,3121.0,3120.6,0.7841]
[1732016367925,3.2041,3121.0,3120.6,0.7841]
[1732016368836,3.20402,3121.1,3120.6,3.98859]
[1732016369347,3.20375,3121.4,3120.7,0.7853]
[1732016369494,3.20383,3121.3,3120.7,3.98965]
[1732016369932,3.20394,3121.2,3120.7,3.98965]
[1732016370136,3.20389,3121.2,3120.7,0.7853]
[1732016370323,3.20389,3121.2,3120.7,3.98969]
[1732016371194,6.40745,3121.4,3120.7,3.98965]
[1732016371396,3.20369,3121.4,3120.8,3.20428]
[1732016371601,3.20381,3121.3,3120.8,3.20428]
[1732016371843,3.2039,3121.2,3120.7,3.98968]
[1732016372203,6.40747,3121.4,3120.8,3.2043]
[1732016372533,6.40747,3121.4,3120.9,0.8171]
[1732016372737,3.20369,3121.4,3120.9,0.8171]
[1732016373411,6.40748,3121.4,3120.9,0.8171]
[1732016374815,3.20381,3121.3,3120.9,0.8171]
[1732016375509,3.20369,3121.4,3120.9,4.02128]
[1732016375840,6.40747,3121.4,3120.9,4.02128]
[1732016376034,3.2038,3121.3,3120.9,0.8171]
[1732016376811,3.20369,3121.4,3120.9,0.8171]
[1732016377014,3.65702479,3121.6,3120.9,0.8171]
[1732016377338,0.8251,3121.8,3120.8,4.5358379]
[1732016377339,3.20365,3121.5,3121.1,0.7795]
[1732016377499,3.20347,3121.7,3121.1,0.7795]
[1732016377695,0.46702403,3121.7,3121.1,0.7795]
[1732016377945,4.02844,3121.8,3121.1,1.41200425]
[1732016378236,3.20353,3121.6,3121.1,4.61599425]
[1732016379015,3.20353,3121.6,3121.1,7.81987425]
[1732016379238,3.20353,3121.6,3121.1,4.61593425]
[1732016379560,3.20353,3121.6,3121.1,3.98343]
[1732016380346,3.20353,3121.6,3120.9,3.20414]
[1732016380347,3.20358,3121.5,3120.8,0.7795]
[1732016380545,0.723196,3121.6,3120.8,0.7795]
[1732016380753,3.20396,3121.2,3120.8,0.7795]
[1732016381343,6.40745,3121.4,3120.8,3.9838]
[1732016381560,6.8001386,3121.4,3120.8,3.9838]
[1732016381811,3.20379,3121.3,3120.8,3.9838]
[1732016382047,3.20366,3121.5,3120.9,3.20418]
[1732016382269,3.20371,3121.4,3120.9,3.20418]
[1732016383046,0.3926736,3121.5,3120.9,3.20418]
[1732016383252,3.20354,3121.6,3120.9,3.20418]
[1732016383253,3.20354,3121.6,3121.0,0.8188]
[1732016383856,3.20358,3121.5,3121.0,0.8188]
[1732016384059,3.20354,3121.6,3121.0,0.8188]
[1732016384215,6.40749,3121.4,3121.0,0.8188]
[1732016384416,0.8251,3121.8,3121.0,0.8188]
[1732016384614,3.20386,3121.3,3121.0,0.8188]
[1732016384840,3.2039,3121.2,3121.0,0.8188]
[1732016385748,3.20374,3121.4,3121.0,0.8188]
[1732016386409,3.20374,3121.4,3121.0,4.02288]
[1732016386614,3.20374,3121.4,3121.0,0.8188]
[1732016387561,3.20381,3121.3,3121.0,0.8188]
[1732016388058,3.20368,3121.5,3121.0,2.1504279]
[1732016388263,3.20368,3121.5,3121.0,4.02288]
[1732016388465,3.20343,3121.7,3121.1,3.20393]
[1732016388768,4.02843,3121.8,3121.1,3.20393]
[1732016388769,3.2033,3121.8,3121.1,3.20393]
[1732016388928,3.2033,3121.8,3121.4,0.7691]
[1732016389116,3.843938,3121.8,3121.4,0.7691]
[1732016389818,0.7746,3122.0,3121.4,0.7691]
[1732016390012,3.20324,3121.9,3121.4,3.97273]
[1732016390617,3.97767,3122.0,3121.5,3.20356]
[1732016391269,3.97767,3122.0,3121.5,3.20358]
[1732016391270,3.20307,3122.0,3121.5,3.20358]
[1732016393510,0.7746,3122.3,3121.6,3.20347]
[1732016393752,3.20286,3122.2,3121.6,3.20347]
[1732016394018,3.20297,3122.1,3121.6,3.20347]
[1732016396052,3.20297,3122.1,3121.7,0.3202]
[1732016396260,3.20297,3122.1,3121.6,3.20347]
[1732016396758,3.20297,3122.1,3121.7,0.8105]
[1732016397115,3.20293,3122.2,3121.7,0.8105]
[1732016397513,3.20298,3122.1,3121.7,0.8105]
[1732016398526,3.20293,3122.2,3121.7,0.8105]
[1732016399056,3.2025,3122.6,3122.0,1.3316279]
[1732016399268,0.8106,3123.0,3122.1,0.7845]
[1732016399269,3.20256,3122.5,3122.1,0.7845]
[1732016399624,3.20266,3122.4,3122.1,0.7845]
[1732016399906,3.522926,3122.4,3122.1,0.7845]
[1732016400069,4.01311,3122.6,3122.1,0.7845]
[1732016400275,3.20282,3122.3,3122.1,0.7845]
[1732016400483,3.20282,3122.3,3121.1,0.01]
[1732016400484,3.20282,3122.3,3121.8,3.20321]
[1732016400783,3.20282,3122.3,3121.8,3.523531]
[1732016400987,3.20282,3122.3,3121.8,3.20321]
[1732016401198,3.20293,3122.2,3121.6,3.98791]
[1732016401375,3.20282,3122.3,3121.7,3.83521785]
[1732016401703,3.20275,3122.4,3121.8,0.7843]
[1732016401872,3.20282,3122.3,3121.8,3.98754]
[1732016402067,3.20282,3122.3,3121.8,1.27759023]
[1732016402267,6.40568,3122.3,3121.8,1.27759023]
[1732016402467,3.20288,3122.2,3121.8,1.27759023]
[1732016402664,3.20282,3122.3,3121.8,4.48085023]
[1732016402973,3.20282,3122.3,3121.9,0.398791]
[1732016403194,3.20282,3122.3,3121.8,0.7843]
[1732016403723,3.20282,3122.3,3121.8,3.98757]
[1732016403866,3.20261,3122.5,3121.8,3.20327]
[1732016404067,3.20266,3122.4,3121.9,4.01981]
[1732016404471,3.20266,3122.4,3121.9,0.8167]
[1732016404867,3.20266,3122.4,3121.9,4.01981]
[1732016405270,3.20256,3122.5,3122.0,3.20305]
[1732016405465,3.20235,3122.7,3122.1,0.7856]
[1732016405696,3.20252,3122.6,3122.1,1.184465]
[1732016405897,3.20235,3122.7,3122.1,4.387425]
[1732016406171,3.20235,3122.7,3122.1,4.387405]
[1732016406493,3.20257,3122.5,3122.1,4.387375]
[1732016406806,3.20257,3122.5,3122.1,3.98851]
[1732016407374,3.20257,3122.5,3122.1,0.7856]
[1732016407679,3.20256,3122.5,3122.1,3.98856]
[1732016407884,3.20256,3122.5,3122.1,0.7856]
[1732016408193,3.73466179,3123.0,3122.1,0.7856]
[1732016408372,3.20263,3122.5,3122.1,0.7856]
[1732016409373,3.20276,3122.3,3122.1,0.7856]
[1732016409706,3.20267,3122.4,3122.1,0.7856]
[1732016410211,3.20286,3122.2,3121.8,0.8217]
[1732016410383,3.20276,3122.4,3121.8,4.02497]
[1732016410571,3.20282,3122.3,3121.8,0.8217]
[1732016411080,3.20317,3121.9,3121.8,0.8217]
[1732016411292,3.20307,3122.0,3121.8,0.8217]
[1732016412572,3.20329,3121.8,3121.5,0.8217]
[1732016413080,3.20338,3121.7,3121.5,0.8217]
[1732016413300,3.20314,3122.0,3121.5,0.8217]
[1732016413501,3.20333,3121.8,3121.5,0.8217]
[1732016414008,3.20303,3122.1,3121.5,0.8217]
[1732016414320,3.20312,3122.0,3121.5,4.02522]
[1732016414661,3.20312,3122.0,3121.6,3.20347]
[1732016415304,3.20312,3122.0,3121.5,0.8217]
[1732016415505,3.20312,3122.0,3121.5,4.02523]
[1732016416043,3.20286,3122.2,3121.6,4.5350379]
[1732016416250,3.20286,3122.2,3121.6,3.20341]
[1732016416549,3.20286,3122.2,3121.7,0.7918]
[1732016416736,3.20286,3122.2,3121.7,3.99517]
[1732016417118,3.20292,3122.2,3121.7,3.99517]
[1732016417705,3.20278,3122.3,3121.8,3.20323]
[1732016417911,3.20269,3122.4,3122.0,0.7918]
[1732016421252,3.20252,3122.6,3122.0,0.7918]
[1732016421549,0.8177,3122.7,3122.1,3.20296]
[1732016421752,3.20233,3122.8,3122.2,3.20283]
[1732016421950,3.20232,3122.8,3122.3,0.8318]
[1732016422154,3.20237,3122.7,3122.3,0.8318]
[1732016422315,3.20237,3122.7,3122.3,2.1634279]
[1732016422742,3.20237,3122.7,3122.3,0.8318]
[1732016423629,3.2021,3123.0,3122.3,4.03454]
[1732016423832,3.20215,3122.9,3122.3,4.03454]
[1732016425253,3.2021,3123.0,3122.3,4.03454]
[1732016425412,3.20225,3122.8,3122.3,4.03454]
[1732016426364,3.20222,3122.9,3122.3,4.03454]
[1732016426522,3.20222,3122.9,3122.3,7.23724]
[1732016426855,3.20222,3122.9,3122.3,4.0345]
[1732016427241,3.2021,3123.0,3122.3,4.0345]
[1732016427438,3.20226,3122.8,3122.3,4.57111279]
[1732016427662,3.2021,3123.0,3122.4,3.20263]
[1732016427846,3.20205,3123.0,3122.5,3.20248]
[1732016428154,3.20181,3123.3,3122.7,3.2023]
[1732016428362,3.20181,3123.3,3122.8,3.20224]
[1732016428652,3.20181,3123.3,3122.9,0.7617]
[1732016428860,3.20149,3123.6,3122.9,0.7617]
[1732016429030,3.20176,3123.3,3122.9,0.7617]
[1732016429662,3.20166,3123.4,3122.9,3.96383]
[1732016430157,3.20146,3123.6,3122.9,0.7617]
[1732016430459,3.20167,3123.4,3122.9,0.7617]
[1732016430773,3.20167,3123.4,3123.0,0.396386]
[1732016432052,3.20146,3123.6,3123.0,0.396386]
[1732016432360,3.20158,3123.5,3123.0,3.598416]
[1732016434662,3.20164,3123.4,3123.0,0.396386]
[1732016434865,3.2018,3123.3,3122.9,0.7617]
[1732016435071,3.20164,3123.4,3122.9,3.96377]
[1732016435355,3.20147,3123.6,3123.0,3.20197]
[1732016435516,3.20147,3123.6,3123.1,1.28792979]
[1732016435965,3.20147,3123.6,3123.1,4.48984979]
[1732016436340,3.20127,3123.8,3123.3,0.7584]
[1732016436854,3.20127,3123.8,3123.3,3.96009]
[1732016437012,3.20127,3123.8,3123.3,5.65426934]
[1732016437214,3.20106,3124.0,3123.4,3.20157]
[1732016437629,3.20106,3124.0,3123.4,3.20163]
[1732016437854,3.20106,3124.0,3123.5,0.7653]
[1732016438230,3.20093,3124.1,3123.5,3.96677]
[1732016438433,3.20092,3124.1,3123.5,3.96677]
[1732016438749,3.20103,3124.0,3123.5,3.96677]
[1732016439517,3.20103,3124.0,3123.5,5.2983979]
[1732016440132,3.20071,3124.3,3123.6,0.8218]
[1732016440658,3.20097,3124.1,3123.6,0.8218]
[1732016441069,3.20107,3124.0,3123.6,0.8218]
[1732016441266,3.20097,3124.1,3123.6,0.8218]
[1732016441472,3.20108,3124.0,3123.6,0.8218]
[1732016441630,3.20102,3124.0,3123.6,0.8218]
[1732016443044,3.20091,3124.2,3123.6,4.02322]
[1732016443248,3.20097,3124.1,3123.6,0.8218]
[1732016443454,3.20097,3124.1,3123.7,0.36255144]
[1732016444447,3.20103,3124.0,3123.7,0.36255144]
[1732016444647,3.20122,3123.8,3123.7,0.36255144]
[1732016444843,3.20112,3123.9,3123.4,1.44788303]
[1732016445045,3.20137,3123.7,3123.4,0.8109]
[1732016445566,3.20165,3123.4,3123.0,0.7503]
[1732016445881,3.20148,3123.6,3123.1,3.2019]
[1732016446385,3.20194,3123.1,3123.0,0.7503]
[1732016446683,3.20181,3123.3,3123.0,0.7503]
[1732016446865,6.40364,3123.3,3123.0,0.7503]
[1732016447253,3.20181,3123.3,3123.0,0.7503]
[1732016448163,3.2018,3123.3,3123.0,0.7503]
[1732016448361,3.20191,3123.2,3123.0,0.7503]
[1732016448769,3.2018,3123.3,3123.0,0.7503]
[1732016449355,3.20191,3123.2,3123.0,0.7503]
[1732016450288,3.2018,3123.3,3123.0,0.7503]
[1732016450460,3.20164,3123.4,3123.0,0.7503]
[1732016450881,6.40335,3123.4,3123.0,0.7503]
[1732016451185,3.20164,3123.4,3123.0,0.7503]
[1732016451948,3.20189,3123.2,3123.0,0.7503]
[1732016452293,3.20194,3123.1,3123.0,0.7503]
[1732016452583,3.20189,3123.2,3123.0,0.7503]
[1732016452798,0.7787,3123.4,3122.8,1.45904934]
[1732016452946,0.7787,3123.4,3122.8,0.64064934]
[1732016453149,3.20202,3123.1,3122.8,0.64064934]
[1732016454046,3.98039,3123.4,3122.8,0.64064934]
[1732016454047,3.20179,3123.3,3122.8,0.64064934]
[1732016454245,3.20179,3123.3,3122.8,3.84289934]
[1732016454777,6.40362,3123.3,3122.8,0.64064934]
[1732016454975,3.20186,3123.2,3122.8,0.64064934]
[1732016455186,3.20194,3123.1,3122.8,0.64064934]
[1732016455485,3.20179,3123.3,3122.8,0.64064934]
[1732016455848,3.20185,3123.2,3122.8,0.64064934]
[1732016457270,3.20201,3123.1,3122.8,0.64064934]
[1732016457807,3.20205,3123.0,3122.8,0.64064934]
[1732016458523,3.20201,3123.1,3122.8,0.64064934]
[1732016458661,6.40405,3123.1,3122.8,0.64064934]
[1732016459471,3.20212,3123.0,3122.8,0.64064934]
[1732016459724,3.20215,3122.9,3122.8,0.64064934]
[1732016460007,3.98685,3122.9,3122.8,0.64064934]
[1732016460789,3.98685,3122.9,3122.0,3.0]
[1732016460790,3.20285,3122.3,3122.1,0.7948]
[1732016460995,6.40477,3122.7,3122.1,3.99773]
[1732016461161,3.20235,3122.7,3122.1,5.54200069]
[1732016461368,3.20251,3122.6,3122.1,5.54200069]
[1732016461706,3.20235,3122.7,3122.1,8.74490069]
[1732016461872,3.20235,3122.7,3122.2,0.55420007]
[1732016462074,7.18912,3122.9,3122.3,3.20275]
[1732016462305,0.7784,3123.2,3122.5,4.5341779]
[1732016462605,3.20222,3122.9,3122.5,1.3316279]
[1732016462764,3.20222,3122.9,3122.4,1.13268116]
[1732016462765,6.40445,3122.9,3122.4,1.13268116]
[1732016462959,6.40445,3122.9,3122.5,0.43354112]
[1732016463198,3.20222,3122.9,3122.5,0.43354112]
[1732016463400,3.20233,3122.8,3122.5,0.43354112]
[1732016463806,3.20222,3122.9,3122.5,0.43354112]
[1732016463965,3.20225,3122.8,3122.5,0.43354112]
[1732016464464,3.20222,3122.9,3122.5,0.43354112]
[1732016464665,3.20227,3122.8,3122.4,0.7948]
[1732016465100,3.20217,3122.9,3122.4,3.9974]
[1732016465324,3.20217,3122.9,3122.4,0.7948]
[1732016466213,3.20217,3122.9,3122.4,3.99746]
[1732016467711,3.20217,3122.9,3122.4,0.7948]
[1732016467922,3.20226,3122.8,3122.4,0.7948]
[1732016468493,3.20256,3122.5,3121.9,0.64074573]
[1732016468811,3.20251,3122.6,3122.0,4.01231]
[1732016469311,3.20245,3122.6,3122.0,4.01231]
[1732016469470,3.20268,3122.4,3122.0,0.8093]
[1732016469670,3.20285,3122.3,3122.0,0.8093]
[1732016469871,3.20294,3122.2,3122.0,0.8093]
[1732016470523,3.20285,3122.3,3122.0,0.8093]
[1732016471078,3.20273,3122.4,3122.0,0.8093]
[1732016473095,6.40507,3122.6,3122.0,0.8093]
[1732016473430,3.20251,3122.6,3122.1,3.20296]
[1732016473594,3.20251,3122.6,3122.1,6.40586]
[1732016473779,3.20251,3122.6,3122.2,0.7641]
[1732016474126,3.20259,3122.5,3122.2,0.7641]
[1732016475230,3.20251,3122.6,3122.2,0.7641]
[1732016475582,3.2023,3122.8,3122.3,3.20272]
[1732016476133,3.20223,3122.9,3122.4,3.983]
[1732016476289,3.20223,3122.9,3122.4,4.3813]
[1732016476784,3.20223,3122.9,3122.4,3.983]
[1732016477179,3.20232,3122.8,3122.4,0.7804]
[1732016477380,3.20232,3122.8,3122.4,3.98305]
[1732016477575,3.20232,3122.8,3122.5,0.398305]
[1732016477831,3.20215,3122.9,3122.5,0.398305]
[1732016478125,3.20215,3122.9,3122.4,3.98305]
[1732016478709,3.20206,3123.0,3122.4,3.98299]
[1732016479114,6.40419,3123.0,3122.4,3.98299]
[1732016479741,3.20217,3122.9,3122.4,3.98299]
[1732016480813,3.20217,3122.9,3122.4,4.61326779]
[1732016481229,3.20206,3123.0,3122.5,3.20253]
[1732016481454,3.20189,3123.2,3122.6,3.20238]
[1732016481747,3.202,3123.1,3122.7,0.7714]
[1732016481941,3.20206,3123.0,3122.7,0.7714]
[1732016483148,3.20149,3123.6,3123.0,3.20199]
[1732016483441,3.20149,3123.6,3123.2,0.7913]
[1732016483595,3.20123,3123.8,3123.2,0.7913]
[1732016483596,3.20133,3123.7,3123.2,0.7913]
[1732016484242,3.99725,3123.9,3123.3,3.20167]
[1732016484401,3.20125,3123.8,3123.3,3.20167]
[1732016484850,3.7961,3123.9,3123.2,2.11926928]
[1732016485010,3.20125,3123.8,3123.2,5.32110928]
[1732016485429,6.40257,3123.8,3123.2,5.32110928]
[1732016485624,3.20125,3123.8,3123.2,0.7913]
[1732016485940,3.2015,3123.6,3123.2,0.7913]
[1732016487063,3.20146,3123.6,3123.2,0.7913]
[1732016487425,0.7961,3123.9,3123.2,0.7913]
[1732016487426,3.2017,3123.4,3123.2,0.7913]
[1732016487751,3.2017,3123.4,3122.4,0.95047779]
[1732016487752,3.20186,3123.2,3122.9,0.7913]
[1732016489029,3.20165,3123.4,3122.9,0.7913]
[1732016489362,6.40337,3123.4,3122.9,0.7913]
[1732016489528,6.40337,3123.4,3122.7,6.40455]
[1732016489529,3.20177,3123.3,3122.7,6.40455]
[1732016489782,3.20177,3123.3,3122.8,0.320226]
[1732016490022,3.20177,3123.3,3122.8,3.522406]
[1732016490235,3.20177,3123.3,3122.9,0.8203]
[1732016490810,4.01685,3123.5,3122.9,4.59423523]
[1732016491041,3.20148,3123.6,3123.0,1.32796928]
[1732016491240,3.20148,3123.6,3123.1,3.20194]
[1732016491655,3.20148,3123.6,3123.0,1.32796928]
[1732016491656,0.7889,3124.3,3123.6,0.7706]
[1732016491868,3.20087,3124.2,3123.7,0.20985693]
[1732016492150,3.20087,3124.2,3123.7,3.20131]
[1732016492310,3.98962,3124.3,3123.8,1.32796928]
[1732016492516,7.19043,3124.3,3123.8,1.32796928]
[1732016492711,3.20092,3124.2,3123.7,3.20131]
[1732016492962,3.20095,3124.1,3123.6,0.7706]
[1732016493571,7.19042,3124.3,3123.7,3.20131]
[1732016493781,3.20072,3124.3,3123.7,3.20131]
[1732016494065,3.20072,3124.3,3123.7,3.20127]
[1732016494632,6.40151,3124.3,3123.7,3.20127]
[1732016495246,3.20072,3124.3,3123.6,0.7706]
[1732016495467,3.20092,3124.1,3123.6,0.7706]
[1732016495976,3.20092,3124.1,3123.6,3.97198]
[1732016496124,3.20072,3124.3,3123.7,3.2013]
[1732016496125,3.20083,3124.2,3123.7,3.2013]
[1732016496844,6.40172,3124.2,3123.7,3.2013]
[1732016497052,6.40172,3124.2,3123.6,0.7706]
[1732016497053,3.20083,3124.2,3123.6,0.7706]
[1732016497231,3.20092,3124.1,3123.6,3.97203]
[1732016498374,3.20107,3124.0,3123.6,0.7706]
[1732016498578,3.20113,3123.9,3123.5,0.63767057]
[1732016498870,3.20117,3123.9,3123.3,4.01658]
[1732016499371,3.20117,3123.9,3123.4,0.401658]
[1732016499581,3.20163,3123.5,3123.1,0.7575]
[1732016499868,3.20163,3123.5,3123.3,0.63683177]
[1732016499869,3.20169,3123.4,3123.3,0.63683177]
[1732016500931,0.7941,3123.5,3123.3,0.63683177]
[1732016501148,3.20147,3123.6,3123.3,0.63683177]
[1732016501538,3.20143,3123.6,3123.3,0.63683177]
[1732016502993,0.7692,3123.7,3123.3,0.63683177]
[1732016503294,0.7692,3123.7,3123.2,3.20177]
[1732016503441,3.20129,3123.8,3123.2,3.597701]
[1732016503792,3.20129,3123.8,3123.2,3.597691]
[1732016503985,6.40258,3123.8,3123.2,3.597691]
[1732016504191,3.20135,3123.7,3123.3,0.4355191]
[1732016504488,3.20129,3123.8,3123.3,0.4355191]
[1732016504831,3.20122,3123.8,3123.3,0.4355191]
[1732016504946,3.20134,3123.7,3123.3,0.4355191]
[1732016505146,3.20135,3123.7,3123.3,0.4355191]
[1732016505949,3.20135,3123.7,3123.2,3.20176]
[1732016506496,0.7688,3123.9,3123.2,3.20176]
[1732016506697,3.20129,3123.8,3123.2,3.20176]
[1732016507205,3.20129,3123.8,3123.2,6.40352]
[1732016507704,3.20129,3123.8,3123.2,3.20176]
[1732016507905,3.20129,3123.8,3123.3,3.20173]
[1732016509300,6.40258,3123.8,3123.3,3.20173]
[1732016509507,3.20129,3123.8,3123.3,3.20173]
[1732016509831,3.20119,3123.9,3123.4,0.7636]
[1732016509978,3.20119,3123.9,3123.4,1.160133]
[1732016510303,3.20122,3123.8,3123.4,1.160133]
[1732016510981,3.20122,3123.8,3123.4,4.361763]
[1732016511300,6.40218,3124.0,3123.4,4.361763]
[1732016511661,3.20118,3123.9,3123.4,4.361763]
[1732016513117,3.20128,3123.8,3123.4,1.160133]
[1732016513490,3.7819,3124.2,3123.4,0.7636]
[1732016513690,3.20121,3123.9,3123.4,0.7636]
[1732016513935,3.20128,3123.8,3123.4,0.7636]
[1732016515243,3.20122,3123.8,3123.4,0.7636]
[1732016515551,3.20121,3123.9,3123.4,0.7636]
[1732016515889,3.2016,3123.5,3123.2,1.46090247]
[1732016517825,3.20136,3123.7,3123.2,1.46090247]
[1732016517826,6.40278,3123.7,3123.2,1.46090247]
[1732016518142,3.20136,3123.7,3123.2,1.46090247]
[1732016518442,6.40277,3123.7,3123.2,1.46090247]
[1732016519647,6.40277,3123.7,3123.5,0.05]
[1732016519844,3.20108,3124.0,3123.6,0.7624]
[1732016520001,3.20133,3123.7,3123.6,0.7624]
[1732016520199,3.20129,3123.8,3123.5,0.05]
[1732016520411,3.20133,3123.7,3123.5,0.05]
[1732016521403,3.20108,3124.0,3123.5,0.05]
[1732016521646,3.20128,3123.8,3123.5,0.05]
[1732016522153,6.40258,3123.8,3123.5,0.05]
[1732016522354,3.20128,3123.8,3123.5,0.05]
[1732016524738,3.20109,3124.0,3123.5,0.05]
[1732016524969,3.20117,3123.9,3123.5,0.05]
[1732016525405,3.20128,3123.8,3123.5,0.05]
[1732016525823,3.20109,3124.0,3123.5,0.05]
[1732016525824,6.4022,3124.0,3123.6,0.7893]
[1732016526015,3.20109,3124.0,3123.6,0.7893]
[1732016526219,3.20087,3124.2,3123.6,0.7893]
[1732016526443,3.20093,3124.1,3123.6,4.48133423]
[1732016526649,3.2009,3124.2,3123.6,1.27997423]
[1732016526837,3.20098,3124.1,3123.6,0.7893]
[1732016527133,3.2009,3124.2,3123.6,3.99067]
[1732016527339,3.2009,3124.2,3123.7,0.404067]
[1732016527733,3.2009,3124.2,3123.7,3.605337]
[1732016528406,3.2009,3124.2,3123.9,0.64456449]
[1732016529034,3.20056,3124.5,3124.0,3.96686]
[1732016529235,3.20056,3124.5,3124.1,0.46114245]
[1732016529436,3.20063,3124.4,3124.0,0.7659]
[1732016529625,3.20072,3124.3,3124.0,0.7659]
[1732016529841,3.20057,3124.5,3124.0,0.7659]
[1732016530361,3.20064,3124.4,3124.0,0.7659]
[1732016531287,3.20077,3124.3,3124.0,0.7659]
[1732016531993,3.20057,3124.5,3124.0,0.7659]
[1732016532284,3.20065,3124.4,3124.0,0.7659]
[1732016532978,5.33912541,3124.9,3124.0,0.7659]
[1732016532979,3.2008,3124.3,3124.0,0.7659]
[1732016533284,3.20078,3124.3,3124.0,0.7659]
[1732016533444,3.20087,3124.2,3124.0,0.7659]
[1732016533642,0.8177,3124.5,3123.9,0.64456449]
[1732016533887,3.20102,3124.0,3123.9,0.64456449]
[1732016534742,3.20102,3124.0,3123.6,0.7828]
[1732016534743,3.20124,3123.8,3123.6,0.7828]
[1732016535157,6.40254,3123.8,3123.6,0.7828]
[1732016535357,3.20124,3123.8,3123.6,0.7828]
[1732016535557,3.20143,3123.6,3123.5,0.05]
[1732016535793,4.01923,3123.6,3123.5,0.05]
[1732016547591,7.01923,3123.6,3123.5,0.05]
[1732016548386,4.01923,3123.6,3123.5,0.05]
[1732016548598,3.9554984,3123.6,3123.5,0.05]
[1732016548778,3.20143,3123.6,3123.5,0.05]
[1732016549183,3.0,3124.0,3123.5,0.8775]
[1732016549462,3.20127,3123.8,3123.5,0.8775]
[1732016549665,3.20098,3124.1,3123.6,0.8275]
[1732016550100,3.20103,3124.0,3123.6,0.8275]
[1732016550265,3.20077,3124.3,3123.8,0.8146]
[1732016550464,3.20077,3124.3,3123.7,3.609232]
[1732016550465,3.20077,3124.3,3124.0,0.8146]
[1732016551420,3.20062,3124.4,3124.0,0.8146]
[1732016551706,6.40132,3124.4,3124.0,0.8146]
[1732016551895,3.20062,3124.4,3124.0,0.8146]
[1732016553412,3.0,3124.8,3124.0,0.8146]
[1732016553599,3.20047,3124.6,3124.1,0.8201]
[1732016553803,3.20011,3124.9,3124.2,0.8201]
[1732016554009,3.20026,3124.8,3124.3,0.8201]
[1732016554173,3.19998,3125.1,3124.5,3.20045]
[1732016554374,3.19983,3125.2,3124.6,0.8239]
[1732016554674,3.20001,3125.0,3124.7,0.8239]